Cogmind - Beta 10.1 @@@ ROGUE MODE // 2020.09.26 @ 17:35:21 Player: MC HELL Result: Destroyed by L-31 Rogue with Katana Performance ------------- Evolutions (2) 1000 Regions Visited (4) 800 Robots Destroyed (69) 345 Value Destroyed (1808) 1808 Prototype IDs (3) 60 Alien Tech Used (0) 0 Bonus (35) 35 TOTAL SCORE: 4048 Bonus ------- High Alert Combat Kills 35 Cogmind --------- Core Integrity 0/550 Matter 59/300 Energy 100/100 System Corruption 18% Temperature Cool (-100) Movement Core (600) Ox11 Location -8/Materials Parts ------- > --- POWER (2) -------- (None) > --- PROPULSION (3) --- (None) > --- UTILITY (3) ------ Cryofiber Web High-capacity Storage Unit > --- WEAPON (3) ------- Hammer > --- INVENTORY (12) --- Improved Heat Sink Compact Matter Pod (150) Long-range Tractor Beam Light Assault Rifle Light Assault Rifle Improved Light Cannon Peak State ------------ > --- POWER ------------ Light Nuclear Core Light Nuclear Core > --- PROPULSION ------- Light Treads > --- UTILITY ---------- Cryofiber Web High-capacity Storage Unit Hardened Medium Armor Plating > --- WEAPON ----------- Minigun Enhanced Autogun Grenade Launcher > --- INVENTORY -------- Light Nuclear Core Improved Heat Sink Compact Matter Pod Long-range Tractor Beam Light Assault Rifle Light Assault Rifle Improved Light Cannon Assault Cannon Hammer [Rating: 24] Favorites ----------- Power Ion Engine Engine Ion Engine Power Core Light Nuclear Core Propulsion Light Treads Treads Light Treads Leg Aluminum Leg Wheel Compact Wheel Utility High-capacity Storage Unit Device Weight Redist. System Storage High-capacity Storage Unit Protection Hardened Light Armor Plating Weapon Assault Cannon Energy Gun EM Pulse Gun Energy Cannon Beam Cannon Ballistic Gun Enhanced Autogun Ballistic Cannon Assault Cannon Launcher Grenade Launcher Special Weapon Mining Laser Impact Weapon Hammer Build | -11 -10 -10 -9 -8 ------- Run | Scr Mat Min Mat Mat Slots Evolved 4 | . . . 2 2 Power 1 | . . . . 1 Propulsion 1 | . . . . 1 Utility 1 | . . . 1 . Weapon 1 | . . . 1 . Parts Attached 66 | 8 8 4 14 32 Power 10 | 1 1 . 2 6 Engine 7 | 1 1 . 2 3 Core 3 | . . . . 3 Reactor . | . . . . . Propulsion 17 | 4 2 1 2 8 Treads 9 | 2 . . 2 5 Leg 3 | . . . . 3 Wheel 5 | 2 2 1 . . Hover . | . . . . . Flight . | . . . . . Utility 9 | 1 3 . 1 4 Device 3 | . 1 . . 2 Storage 3 | 1 2 . . . Processor . | . . . . . Hackware . | . . . . . Protection 3 | . . . 1 2 Artifact . | . . . . . Weapon 30 | 2 2 3 9 14 Energy Gun 4 | 1 . . 1 2 Energy Cannon 1 | . . . . 1 Ballistic Gun 10 | 1 1 . 3 5 Ballistic Cannon 5 | . . . 2 3 Launcher 6 | . 1 2 2 1 Special Weapon 2 | . . 1 1 . Impact Weapon 2 | . . . . 2 Slashing Weapon . | . . . . . Piercing Weapon . | . . . . . Special Melee Weapon . | . . . . . Unidentified Prototypes 3 | . . . 1 2 Parts Lost 35 | . 2 2 5 26 Power 8 | . 1 . 1 6 Propulsion 8 | . 1 . . 7 Utility 3 | . . . . 3 Weapon 16 | . . 2 4 10 Highest Loss Streak 8 | . 2 3 3 8 Average Slot Usage (%) 86 | . 100 100 97 75 Engine 10 | . 14 14 10 8 Core 1 | . . . . 3 Treads 9 | . . . 18 9 Leg 1 | . . . . 2 Wheel 8 | . 28 28 3 . Device 10 | . 14 14 11 8 Storage 10 | . 14 14 11 9 Protection 6 | . . . 11 7 Energy Gun 4 | . 14 . 5 2 Ballistic Gun 8 | . 6 . 6 11 Ballistic Cannon 5 | . . . 9 5 Launcher 5 | . 7 21 8 . Impact Weapon 1 | . . . . 3 Naked Turns . | . . . . . Heaviest Build 62 | 12 42 43 58 62 Greatest Support 60 | 26 38 32 46 60 Greatest Overweight (x) 19 | . 1 1 1 19 Average Overweight (x) 1 | . . 1 1 1 Largest Inventory Capacity 12 | 6 12 12 12 12 Average Capacity 11 | 5 9 12 12 12 Most Carried 12 | 6 12 10 12 12 Average Carried 8 | 4 7 9 9 9 Final Capacity 12 | 6 12 12 12 12 Final Carried 11 | 6 11 10 10 6 Class Distribution -------------------- 44% | Mutant 21% | Bomber 19% | Scavenger-Mutant 9% | Tank 3% | Scavenger-Tank Dominant Class ---------------- Mutant | -10/Materials Mutant | -10/Mines Bomber | -9/Materials Scavenger-Mutant | -8/Materials Resources | -11 -10 -10 -9 -8 ----------- Run | Scr Mat Min Mat Mat Matter Collected 1845 | 221 232 1 267 1124 Remotely . | . . . . . Salvage Created 1900 | 18 453 36 261 1132 Parts 134 | 4 32 9 17 72 Haulers Intercepted 1 | . 1 . . . Recyclers Shooed 1 | . . . . 1 Parts Field Recycled . | . . . . . Retrieved Matter . | . . . . . Parts Self-Destructed . | . . . . . Prevented . | . . . . . Kills | -11 -10 -10 -9 -8 ------- Run | Scr Mat Min Mat Mat Combat Hostiles Destroyed 47 | . 9 6 8 24 Guns 24 | . 5 1 2 16 Cannons 9 | . . . 5 4 AOE 14 | . 4 5 1 4 Classes Destroyed 12 | 1 8 . 1 2 Worker 5 | . 2 . . 3 Builder 5 | . 1 . 1 3 Tunneler 1 | 1 . . . . Hauler 1 | . 1 . . . Recycler 3 | . 1 . 1 1 Mechanic 2 | . 1 . . 1 Watcher 5 | . 1 . . 4 Swarmer 16 | . 3 6 . 7 Grunt 20 | . 6 . 6 8 Brawler 2 | . . . . 2 Duelist 1 | . . . . 1 Sentry 8 | . . . 2 6 Best Kill Streak 13 | 1 5 3 4 13 Combat Bots Only 3 | . 3 3 3 3 Max Kills in Single Turn 4 | 1 4 3 2 4 Gunslinging 1 | . . . . 1 Exploded 3 | . 3 3 1 1 Melee . | . . . . . Uniques/NPCs Destroyed . | . . . . . Combat | -11 -10 -10 -9 -8 -------- Run | Scr Mat Min Mat Mat Damage Taken 4735 | 8 516 85 831 3295 Core 866 | . 153 47 112 554 Absorbed by Shields . | . . . . . Core Remaining (%) 64 | 100 . 20 72 . Volleys Fired 173 | 3 31 7 36 96 Largest 3 | 2 2 2 3 3 Hottest 130 | 60 70 100 130 113 Shots Fired 352 | 6 59 11 68 208 Gun 230 | 6 51 1 23 149 Cannon 70 | . . . 24 46 Launcher 40 | . 8 7 12 13 Special 12 | . . 3 9 . Kinetic 215 | 3 20 . 37 155 Thermal 62 | . . 3 19 40 Explosive 40 | . 8 7 12 13 Electromagnetic 35 | 3 31 1 . . Robot Hit Streak 19 | 5 7 6 19 12 Robot Miss Streak 7 | 1 2 2 7 5 Penetration Max . | . . . . . Secondary Targets 3 | . 1 . . 2 Max Gunslinging Chain 1 | . 1 . . 1 Shots Hit Robots 221 | 5 41 5 39 131 Core Hits 125 | 3 29 6 20 67 Critical Hits 1 | . . . 1 . Critical Kills 1 | . . . 1 . Critical Parts Destroyed . | . . . . . Melee Attacks 1 | . . . . 1 Impact 1 | . . . . 1 Slashing . | . . . . . Piercing . | . . . . . Sneak Attacks . | . . . . . Combat Hostiles . | . . . . . Follow-up Attacks . | . . . . . Damage Inflicted 5606 | 70 1203 387 962 2984 Guns 2333 | 40 531 12 151 1599 Cannons 1010 | . . . 373 637 Explosions 2079 | 30 672 351 318 708 Melee 23 | . . . . 23 Ramming 17 | . . . . 17 Kinetic 2539 | 16 236 . 438 1849 Thermal 944 | 30 197 24 206 487 Explosive 1752 | . 475 351 318 608 Electromagnetic 331 | 24 295 12 . . Impact 23 | . . . . 23 Slashing . | . . . . . Piercing . | . . . . . Highest Corruption 18 | . . . . 18 Average Corruption 13 | . . . . 13 Corruption Purged . | . . . . . Effects 80 | . . . . 80 Message Errors 5 | . . . . 5 Matter Fused 9 | . . . . 9 Heat Flow Errors 7 | . . . . 7 Energy Discharges 3 | . . . . 3 Parts Rejected 3 | . . . . 3 Data Loss (minor) 3 | . . . . 3 Data Loss (major) 4 | . . . . 4 Misfires 3 | . . . . 3 Misdirections 2 | . . . . 2 Targeting Errors 37 | . . . . 37 Weapon Failures 4 | . . . . 4 Overload Shots . | . . . . . Overflow Damage 100 | . 29 26 15 30 Projectiles 2 | . . . 2 . Explosions 98 | . 29 26 13 30 Melee . | . . . . . Knockbacks 3 | . . . 1 2 Impact . | . . . . . Kinetic 3 | . . . 1 2 Secondary . | . . . . . Self-Inflicted Damage 349 | 9 28 47 146 119 Shots 15 | 1 2 1 6 5 Rammed 6 | . . . . 6 Targets Rammed 6 | . . . . 6 Kicked . | . . . . . Crushed . | . . . . . Highest Temperature 491 | 32 160 20 372 491 Average Temperature 113 | 18 48 11 132 129 Received Heat Transfer 1680 | . 252 . 303 1125 Effects 10 | . . . 3 7 Energy Bleed 2 | . . . . 2 Interference 3 | . . . 2 1 Matter Decay 3 | . . . 1 2 Damage (minor) 1 | . . . . 1 Damage (major) 1 | . . . . 1 Siege Activations . | . . . . . Robots Corrupted . | . . . . . Combat Hostiles . | . . . . . Parts Fried . | . . . . . Impact Corruptions . | . . . . . Robots Melted . | . . . . . Combat Hostiles . | . . . . . Parts Melted 1 | . 1 . . . Heat Transferred 1897 | 100 300 50 472 975 Parts Sabotaged . | . . . . . Parts Stolen . | . . . . . Parts Stripped . | . . . . . Power Chain Reactions 4 | 1 3 . . . Missiles Intercepted . | . . . . . Alert | -11 -10 -10 -9 -8 ------- Run | Scr Mat Min Mat Mat Peak Influence 573 | 5 305 202 339 573 Initial 78 | . 3 52 78 58 Average 140 | . 127 178 200 123 Maximum Alert Level 2 | . 1 1 1 2 Low Security (%) 70 | 100 85 25 32 86 Level 1 26 | . 14 74 67 7 Level 2 3 | . . . . 6 Level 3 . | . . . . . Level 4 . | . . . . . Level 5 . | . . . . . High Security . | . . . . . Max Security . | . . . . . Squads Dispatched 9 | . 2 . 3 4 Investigation 3 | . 2 . 1 . Extermination . | . . . . . Reinforcement 4 | . . . 2 2 Assault 1 | . . . . 1 Garrison 1 | . . . . 1 Intercept . | . . . . . Construction Impeded 1 | . . . 1 . Haulers Reinforced . | . . . . . Stealth | -11 -10 -10 -9 -8 --------- Run | Scr Mat Min Mat Mat Distress Signals 5 | . 2 . 1 2 Communications Jammed . | . . . . . Distress Signals . | . . . . . Times Spotted 72 | . 12 6 12 42 Peak Tracking Total 6 | . 5 3 5 6 Tactical Retreats 3 | . 1 . 1 1 Traps | -11 -10 -10 -9 -8 ------- Run | Scr Mat Min Mat Mat Traps Triggered 1 | . 1 . . . Indirectly . | . . . . . Trap Hack Attempts . | . . . . . Triggered . | . . . . . Disarmed . | . . . . . Reprogrammed . | . . . . . Reused . | . . . . . Traps Extracted . | . . . . . Installed . | . . . . . Triggered . | . . . . . Machines | -11 -10 -10 -9 -8 ---------- Run | Scr Mat Min Mat Mat Machines Disabled 7 | . . 1 3 3 Max in Single Turn 2 | . . 1 1 2 Garrison Access 1 | . . . . 1 Machines Sabotaged . | . . . . . Garrisons Compromised . | . . . . . Overloaded Fab Kills . | . . . . . Fab Network Shutdowns . | . . . . . Hacking | -11 -10 -10 -9 -8 --------- Run | Scr Mat Min Mat Mat Machines Accessed 10 | . 3 . 3 4 Terminals 8 | . 3 . 2 3 Fabricators . | . . . . . Repair Stations . | . . . . . Recycling Units 1 | . . . . 1 Scanalyzers 1 | . . . 1 . Garrison Access . | . . . . . Total Hacks 23 | . 8 . 8 7 Successful 14 | . 4 . 5 5 Failed 9 | . 4 . 3 2 Catastrophic 1 | . 1 . . . Database Lockouts . | . . . . . Manual . | . . . . . Terminals 19 | . 8 . 6 5 Fabricators . | . . . . . Repair Stations . | . . . . . Recycling Units 2 | . . . . 2 Scanalyzers 2 | . . . 2 . Garrison Access . | . . . . . Terminal Hacks 10 | . 4 . 3 3 Record 1 | . . . . 1 Robot Analysis 1 | . 1 . . . Emergency Access Points 1 | . . . . 1 Alert Level 3 | . 1 . 2 . Unreport Threat 2 | . 1 . . 1 Transport Status 1 | . 1 . . . Zone Layout 1 | . . . 1 . Fabricator Hacks . | . . . . . Repair Station Hacks . | . . . . . Recycling Unit Hacks 2 | . . . . 2 Report Inventory 1 | . . . . 1 Retrieve Components 1 | . . . . 1 Scanalyzer 2 | . . . 2 . Insert Component 1 | . . . 1 . Analyze 1 | . . . 1 . Garrison Access Hacks . | . . . . . Unauthorized Hacks . | . . . . . Terminals . | . . . . . Fabricators . | . . . . . Repair Stations . | . . . . . Recycling Units . | . . . . . Scanalyzers . | . . . . . Garrison Access . | . . . . . Data Cores Recovered . | . . . . . Used . | . . . . . Hacking Detections 8 | . 3 . 3 2 Full Trace Events 3 | . 2 . 1 . Feedback Events . | . . . . . Feedback Blocked . | . . . . . Robot Schematics Acquired . | . . . . . Robots Built . | . . . . . Matter . | . . . . . Time . | . . . . . Total Robot Build Rating . | . . . . . Part Schematics Acquired 1 | . . . 1 . Parts Built . | . . . . . Matter . | . . . . . Time . | . . . . . Total Part Build Rating . | . . . . . Parts Repaired . | . . . . . Time . | . . . . . Parts Recycled . | . . . . . Recycled Matter . | . . . . . Retrieved Matter . | . . . . . Retrieved Components 10 | . . . . 10 Parts Scanalyzed 1 | . . . 1 . Part Schematics Acquired 1 | . . . 1 . Parts Damaged . | . . . . . Bothacking | -11 -10 -10 -9 -8 ------------ Run | Scr Mat Min Mat Mat Used RIF Installer . | . . . . . Robots Hacked . | . . . . . Non-combat . | . . . . . Combat . | . . . . . Robot Hacks Applied . | . . . . . Relay Couplers Released 2 | . . . . 2 Machine Destruction 2 | . . . . 2 Robots Rewired . | . . . . . Allies Hacked . | . . . . . Hacks Repelled . | . . . . . Allies | -11 -10 -10 -9 -8 -------- Run | Scr Mat Min Mat Mat Total Allies . | . . . . . Largest Group . | . . . . . Highest-Rated Group . | . . . . . Highest-Rated Ally . | . . . . . Total Orders . | . . . . . Ally Attacks . | . . . . . Total Damage . | . . . . . Kills . | . . . . . Allies Corrupted . | . . . . . Allies Melted . | . . . . . Intel | -11 -10 -10 -9 -8 ------- Run | Scr Mat Min Mat Mat Robot Analysis Total 1 | . 1 . . . Derelict Logs Recovered 2 | . . 2 . . Drone Launches . | . . . . . Drone Recoveries . | . . . . . Exploration | -11 -10 -10 -9 -8 ------------- Run | Scr Mat Min Mat Mat Turns Passed 2127 | 69 363 182 421 1092 Spaces Moved 951 | 51 230 141 173 356 Core 24 | 17 . . . 7 Treads 426 | 2 . . 128 296 Legs 53 | . . . . 53 Wheels 448 | 32 230 141 45 . Hover . | . . . . . Flight . | . . . . . Fastest Speed 50 | 50 90 100 100 150 Average Speed 147 | 79 102 100 159 200 Slowest Speed 1000 | 160 110 100 180 1000 Overloaded Moves . | . . . . . Propulsion Burnouts . | . . . . . Robots Hopped . | . . . . . Cave-ins Triggered 1 | . . . . 1 Exploration Rate (%) 29 | 4 42 41 21 38 Regions Visited 4 Branch Regions 1 Pre-discovered Areas . | . . . . . Known Exits Taken . | . . . . . Unknown Exits Taken 4 | 1 1 1 1 . Scrap Searched . | . . . . . Spaces Dug . | . . . . . Terrain Destroyed 249 | 4 45 47 67 86 Melee . | . . . . . Projectile 13 | . . 1 4 8 AOE 236 | 4 45 46 63 78 Terrain Rammed . | . . . . . Walls Destroyed . | . . . . . Machines Disabled . | . . . . . Actions | -11 -10 -10 -9 -8 --------- Run | Scr Mat Min Mat Mat Total 1342 | 72 299 164 237 570 Wait 78 | . 11 11 2 54 Move 947 | 50 229 140 172 356 Hop . | . . . . . Pick Up 57 | 11 13 2 10 21 Fast Attach 3 | 1 1 . . 1 Attach 41 | 5 1 3 7 25 Detach 1 | . . . . 1 Swap 22 | 2 6 1 7 6 Drop 13 | . 7 . 3 3 Fire 173 | 3 31 7 36 96 Melee 1 | . . . . 1 Ram 1 | . . . . 1 Kick . | . . . . . Crush 5 | . . . . 5 Escape Stasis . | . . . . . Rewire . | . . . . . Trap . | . . . . . Miscellaneous . | . . . . . Route ------- -11/Scrapyard -10/Materials -10/Mines (discovered 2 exits: *Mat x2) -9/Materials (discovered 2 exits: *Mat / Sto) -8/Materials History --------- Turn | Location | Event 12 | -11/Scrapyard | Discovered new exit (range 15) 70 | -11/Scrapyard | Entered Materials 306 | -10/Materials | Build established: Mutant 333 | -10/Materials | Discovered new exit (range 16) 357 | -10/Materials | Core integrity fell below 50% 433 | -10/Materials | Entered Mines 468 | -10/Mines | Lost 3 parts (1p1n1w) 484 | -10/Mines | Discovered new exit (range 10) 583 | -10/Mines | Discovered new exit (range 10) 596 | -10/Mines | Learned Materials trap positions 605 | -10/Mines | Assembled infested the area 615 | -10/Mines | Entered Materials 615 | -9/Materials | Evolved 2 slots: Utility x1, Weapon x1 616 | -9/Materials | Identified exit to Storage 617 | -9/Materials | Loaded intel: 24 trap records 910 | -9/Materials | Lost 3 parts (1p2w) 913 | -9/Materials | Discovered new exit (range 13) 1036 | -9/Materials | Entered another Materials area 1036 | -8/Materials | Evolved 2 slots: Power x1, Propulsion x1 1175 | -8/Materials | System corruption reached 10% 1234 | -8/Materials | Lost 8 parts (2p2n2u2w) 1652 | -8/Materials | Lost 3 parts (2n1w) 1807 | -8/Materials | Core integrity fell below 50% 1854 | -8/Materials | Lost 3 parts (1p1n1w) 1937 | -8/Materials | Build established: Scavenger-Mutant 2103 | -8/Materials | Lost 4 parts (2p1n1w) 2109 | -8/Materials | Crushed by falling debris 2119 | -8/Materials | Core integrity fell below 20% 2128 | -8/Materials | Destroyed by L-31 Rogue with Katana Last Messages --------------- System corrupted: Assault Cannon targeting data glitched. L-31 Rogue knocked back. U-05 Engineer lays Concrete. Hrd. Medium Armor Plating destroyed. U-05 Engineer lays Concrete. Lgt. Treads destroyed. Critical hit. Assault Cannon destroyed. U-05 Engineer lays Concrete. Destroyed Imp. Ion Engine. U-05 Engineer lays Concrete. Minigun destroyed. System corrupted: Substantial component data lost. U-05 Engineer builds a Wall. K-01 Serf cleans the Fusion Modulator. U-05 Engineer lays Concrete. M-28 Smith fits Backup Power III on L-31 Rogue. The unstable cave ceiling collapses. U-05 Engineer lays Concrete. K-01 Serf collects debris. Map ----- +----------------------------------------------------+ | ?????????????????????????????????????????????????? | | ?????????????????????????????????????????????????? | | ?????????????????????????????????????????????????? | | ?????????????????????????????????????????????????? | | ?????????????????????????????????????????????????? | | ?????????????????????????????????????????????????? | | ?????????????????????????????????????????????????? | | ?????????????????????????????????????????????????? | | ?????????????????????????????????????????????????? | | ?????????????????????????????????????????????????? | | ?????????????????????????????????????????????????? | | ?????????????????????????????????????????????????? | | ?????????????????????????????????????????????????? | | ?????????????????????????????????????????????????? | | ?????????????????????######??????????????????????? | | ???????????????????### ??????????????????????? | | ???????????????????? ??????????????????????? | | ???????????????????? ????????????//????????? | | ????????????????????? ???????????///????????? | | ?????????????????????? ??#######? ???????? | | ??????????????????????#u #?? ## ???????? | | ??????????????????????# #?# ! ???????? | | ?#############????##### ## #+??????? | | ?# #????#== k %g !%* ??????? | | ?# """ #????#== = % ?????? | | ?# """"" #????#[[ @ m g ?????? | | ?# """"" #????#[[ l # ""????? | | ?# """"" #????#!! !!#= "????? | | ?# """ #????#!! u= ! =k %! "????? | | ?# #????##### # !" ! #![ "????? | | ########+#####???????# %! R # "????? | | =# #?????????# """ ?????? | | ! # ############ # " ! ?????? | | + % ! #########? ??????? | | """" # ###### ######+#####??????? ? ??????? | | """" # #????# #?# #?????????"?????????? | | """"?###%###????# #?# """ #???????????????????? | | ####?###+####???#%#?# """ #???????????????????? | | ?????#[ %*=##### ### ! """ #???????????????????? | | ?????# / + !#???????????????????? | | ?????# ######### """ #???????????????????? | | ?????# "T" #???????# """ #???????????????????? | | ?????# """ #???????# """ |#???????????????????? | | ?????# #######?# #???????????????????? | | #########+### ############???????????????????? | | ????????????????????????? | | [ ????????????????????????? | | % ????????????????????????? | | ##+### # #### ?????????????????????????? | | #% * #! !###+###??????????????????????????????? | +----------------------------------------------------+ Best States ------------- Heat Dissipation 45 Energy Generation 23 Energy Capacity 430 Matter Stores 300 Matter Capacity 300 Sight Range 16 Terrain Scan Density 10 Additional Mass Support 6 Base Temperature (-) 100 Armor Coverage 225 Evasion (%) 50 Recoil Reduction 3 Item Schematics ----------------- Hrd. Light Armor Plating | -9/Materials | Scanalyzed Robot Schematics ------------------ None Fabricated ------------ Nothing Alien Tech Used ----------------- None Achievements -------------- None Challenges ------------ None Game ------ Seed FieldDispersionLance Manual? 0 Play Time 00:33:58 Cumulative 11.0 hours Start 2020.09.26 @ 17:04:00 End 2020.09.26 @ 17:35:21 Sessions 1 Manual Loads 0 Difficulty Rogue Special Mode None Game No. 22 Rogue 22 Adventurer 0 Explorer 0 Win Type - Total 0 Types 0/0/0/0/0/0/0/0/0 Lore% 22 Gallery% 21 Achievement% 14 Wizard Run 0 Options --------- ASCII 0 Keyboard 0 Movement Mouse Keybinds 0 Fullscreen 1 Font 24/Smallcaps Map View 76x50 Tactical HUD 0 Map Filters NONE Filters NONE Steam 1 RUN: e475a2f5-c0c3-45b7-9b65-1c7ab9648461